fUST/lending_fUST_20240820
["ID","MTS","AMOUNT","RATE_DAILY","PERIOD"]
[335352133,1724154638240,-288.30937481,0.0001,2]
[335352134,1724154638430,-1613.61724275,0.00010544,2]
[335352135,1724154638441,-751.0,0.00010829,2]
[335352136,1724154638451,-1340.05,0.00010959,2]
[335352137,1724154638461,-1116.71,0.00010959,2]
[335352138,1724154638470,-930.59,0.00010959,2]
[335352139,1724154638480,-775.49,0.00010959,2]
[335352140,1724154638489,-646.24,0.00010959,2]
[335352141,1724154638498,-538.54,0.00010959,2]
[335352142,1724154638507,-448.78,0.00010959,2]
[335352143,1724154638517,-373.98,0.00010959,2]
[335352144,1724154638526,-311.65,0.00010959,2]
[335352145,1724154638537,-259.71,0.00010959,2]
[335352146,1724154638547,-216.43,0.00010959,2]
[335352147,1724154638557,-180.36,0.00010959,2]
[335352148,1724154638567,-2756.80826273,0.00011033,2]
[335352149,1724154638576,-810.66321171,0.00011712,2]
[335352150,1724154638587,-55478.02051668,0.00011731,2]
[335352151,1724154638597,-160.46171883,0.00011731,2]
[335352152,1724154638607,-601.94985179,0.00011842,2]
[335352153,1724154638616,-174.85504165,0.00011894,2]
[335352154,1724154638626,-68782.7009917,0.000119,2]
[335352155,1724154638635,-68782.7009917,0.00011977,2]
[335352156,1724154638644,-20797.12874944,0.00011987,2]
[335352157,1724154638654,-68782.7009917,0.0001211,2]
[335352158,1724154638663,-569.6147727,0.0001212,2]
[335352159,1724154638673,-2756.80826273,0.00012214,2]
[335352160,1724154638682,-154.76012181,0.00012356,2]
[335352161,1724154638692,-534.91146023,0.00012356,2]
[335352162,1724154638702,-2166.4854483,0.00012356,2]
[335352163,1724154638712,-8845.25511796,0.00012516,2]
[335352164,1724154638721,-2282.67176676,0.00012516,3]
[335352165,1724154638731,-1766.63770101,0.00012516,2]
[335352166,1724154638741,-155.03129781,0.00012689,2]
[335352167,1724154638751,-3092.99892406,0.00012779,2]
[335352168,1724154638760,-154.76012181,0.00012779,2]
[335352169,1724154638769,-817.60790766,0.00012898,2]
[335352170,1724154638779,-7141.29199573,0.000129,2]
[335352171,1724154638791,-7141.29199567,0.000129,2]
[335352172,1724154638801,-823.70409921,0.00012934,2]
[335352173,1724154638811,-186.51692237,0.00012934,2]
[335352174,1724154638821,-154.76012181,0.00012934,2]
[335352175,1724154638831,-665.53459983,0.00012934,2]
[335352176,1724154638840,-780.13119624,0.00012934,2]
[335352177,1724154638849,-493.36312925,0.0001295,2]
[335352178,1724154638859,-898.81779354,0.00012971,2]
[335352179,1724154638868,-154.76012181,0.00012971,2]
[335352180,1724154638879,-544.06785329,0.00012971,2]
[335352181,1724154638890,-68782.7009917,0.00012979,2]
[335352182,1724154638901,-159.95730847,0.00012985,2]
[335352183,1724154638911,-213.11844268,0.00012985,2]
[335352184,1724154638921,-520.67910379,0.00012989,2]
[335352185,1724154638931,-520.67910379,0.00012989,2]
[335352186,1724154638940,-413.70707529,0.00012989,2]
[335352187,1724154638950,-521.35824671,0.00012991,2]
[335352188,1724154638959,-862.53940611,0.00013,2]
[335352189,1724154638969,-154.76012181,0.00013025,2]
[335352190,1724154638978,-154.76012181,0.00013025,2]
[335352191,1724154638987,-154.76012181,0.00013025,2]
[335352192,1724154638997,-301.56944091,0.00013051,2]
[335352193,1724154639007,-781.58750364,0.00013377,2]
[335352194,1724154639018,-2756.80826273,0.00013396,2]
[335352195,1724154639028,-154.76012181,0.00013597,2]
[335352196,1724154639042,-188.93065637,0.00013698,2]
[335352197,1724154639052,-500.0,0.00013698,2]
[335352198,1724154639062,-640.01647603,0.00013698,2]
[335352199,1724154639071,-256.37636834,0.00013698,2]
[335352200,1724154639081,-500.0,0.00013698,2]
[335352201,1724154639091,-624.28525711,0.00013698,2]
[335352202,1724154639100,-500.0,0.00013698,2]
[335352203,1724154639110,-500.0,0.00013698,2]
[335352204,1724154639120,-500.0,0.00013698,2]
[335352205,1724154639133,-500.0,0.00013698,2]
[335352206,1724154639142,-500.0,0.00013698,2]
[335352207,1724154639153,-500.0,0.00013698,2]
[335352208,1724154639163,-500.0,0.00013698,2]
[335352209,1724154639174,-500.0,0.00013698,2]
[335352210,1724154639184,-179.46345783,0.00013698,2]
[335352211,1724154639194,-500.0,0.00013698,2]
[335352212,1724154639205,-200.0,0.00013698,2]
[335352213,1724154639215,-500.0,0.00013698,2]
[335352214,1724154639224,-971.985538,0.00013699,2]
[335352215,1724154639233,-3000.0,0.00013699,2]
[335352216,1724154639243,-500.0,0.00013699,2]
[335352217,1724154639252,-500.0,0.00013699,2]
[335352218,1724154639262,-500.0,0.00013699,2]
[335352219,1724154639283,-500.0,0.00013699,2]
[335352220,1724154639296,-500.0,0.00013699,2]
[335352221,1724154639306,-500.0,0.00013699,2]
[335352222,1724154639316,-500.0,0.00013699,2]
[335352223,1724154639327,-500.0,0.00013699,2]
[335352224,1724154639336,-500.0,0.00013699,2]
[335352225,1724154639346,-500.0,0.00013699,2]
[335352226,1724154639355,-500.0,0.00013699,2]
[335352227,1724154639365,-500.0,0.00013699,2]
[335352228,1724154639375,-500.0,0.00013699,2]
[335352229,1724154639384,-500.0,0.00013699,2]
[335352230,1724154639394,-258.02031006,0.00013699,2]
[335352231,1724154639405,-500.0,0.00013699,2]
[335352232,1724154639415,-194.83065114,0.00013699,2]
[335352233,1724154639424,-265.40508591,0.00013971,2]
[335352234,1724154639434,-495.19490276,0.00014245,2]
[335352235,1724154639444,-163.245073,0.00014247,2]
[335352236,1724154639455,-629.936177,0.00014247,2]
[335352237,1724154639466,-158.1221147,0.00014519,2]
[335352238,1724154639476,-237.35486148,0.00015,2]
[335352239,1724154639486,-7141.29199567,0.00015551,2]
[335352240,1724154639496,-781.58750356,0.00015768,2]
[335352241,1724154639505,-249.928033,0.0001589,2]
[335352242,1724154639515,-602.049,0.00016416,2]
[335352243,1724154639525,-150.074,0.00016416,2]
[335352244,1724154639541,-68782.7009917,0.00016428,2]
[335352245,1724154639550,-500.0,0.00016438,2]
[335352246,1724154639560,-500.0,0.00016438,2]
[335352247,1724154639569,-500.0,0.00016438,2]
[335352248,1724154639579,-500.0,0.00016438,2]
[335352249,1724154639589,-500.0,0.00016438,2]
[335352250,1724154639599,-500.0,0.00016438,2]
[335352251,1724154639609,-500.0,0.00016438,2]
[335352252,1724154639619,-236.43945453,0.00016438,2]
[335352253,1724154639629,-500.0,0.00016438,2]
[335352254,1724154639639,-500.0,0.00016438,2]
[335352255,1724154639648,-500.0,0.00016438,2]
[335352256,1724154639657,-500.0,0.00016438,2]
[335352257,1724154639667,-500.0,0.00016438,2]
[335352258,1724154639677,-500.0,0.00016438,2]
[335352259,1724154639687,-500.0,0.00016438,2]
[335352260,1724154639697,-500.0,0.00016438,2]
[335352261,1724154639707,-500.0,0.00016438,2]
[335352262,1724154639719,-500.0,0.00016438,2]
[335352263,1724154639731,-600.0,0.00016438,2]
[335352264,1724154639741,-500.0,0.00016438,2]
[335352265,1724154639751,-633.09,0.00016438,2]
[335352266,1724154639760,-504.31810645,0.00016438,2]
[335352267,1724154639770,-500.0,0.00016438,2]
[335352268,1724154639779,-564.73416109,0.00016438,2]
[335352269,1724154639789,-500.0,0.00016438,2]
[335352270,1724154639799,-503.93180508,0.00016438,2]
[335352271,1724154639809,-1510.61,0.00016438,2]
[335352272,1724154639819,-2000.0,0.00016438,2]
[335352273,1724154639830,-500.0,0.00016438,2]
[335352274,1724154639841,-500.0,0.00016438,2]
[335352275,1724154639853,-500.0,0.00016438,2]
[335352276,1724154639863,-500.0,0.00016438,2]
[335352277,1724154639874,-500.0,0.00016438,2]
[335352278,1724154639884,-653.02,0.00016438,2]
[335352279,1724154639895,-753.23,0.00016438,2]
[335352280,1724154639906,-749.92,0.00016438,2]
[335352281,1724154639917,-207.6,0.00016438,2]
[335352282,1724154639928,-375.38118983,0.00016438,2]
[335352283,1724154639941,-155.0,0.00016438,2]
[335352284,1724154639951,-500.0,0.00016438,2]
[335352285,1724154639962,-890.93,0.00016438,2]
[335352286,1724154639971,-500.0,0.00016438,2]
[335352287,1724154639982,-1388.38,0.00016438,2]
[335352288,1724154639991,-500.0,0.00016438,2]
[335352289,1724154640001,-500.0,0.00016438,2]
[335352290,1724154640011,-249.16218882,0.00016438,2]
[335352291,1724154640021,-500.0,0.00016438,2]
[335352293,1724154640032,-500.0,0.00016438,2]
[335352294,1724154640044,-500.0,0.00016438,2]
[335352295,1724154640054,-943.21,0.00016438,2]
[335352296,1724154640063,-520.05,0.00016438,2]
[335352297,1724154640074,-500.0,0.00016438,2]
[335352298,1724154640085,-500.0,0.00016438,2]
[335352299,1724154640101,-500.0,0.00016438,2]
[335352300,1724154640111,-500.0,0.00016438,2]
[335352301,1724154640121,-500.0,0.00016438,2]
[335352302,1724154640135,-500.0,0.00016438,2]
[335352303,1724154640145,-500.0,0.00016438,2]
[335352304,1724154640158,-468.17436403,0.00016438,2]
[335352305,1724154640169,-500.0,0.00016438,2]
[335352306,1724154640181,-500.0,0.00016438,2]
[335352307,1724154640192,-500.0,0.00016438,2]
[335352308,1724154640202,-500.0,0.00016438,2]
[335352309,1724154640215,-2495.02,0.00016438,2]
[335352310,1724154640226,-305.21,0.00016438,2]
[335352311,1724154640238,-571.66,0.00016438,2]
[335352312,1724154640249,-500.0,0.00016438,2]
[335352313,1724154640262,-500.0,0.00016438,2]
[335352314,1724154640272,-500.0,0.00016438,2]
[335352315,1724154640283,-500.0,0.00016438,2]
[335352316,1724154640294,-500.0,0.00016438,2]
[335352317,1724154640307,-591.12161881,0.00016438,2]
[335352318,1724154640317,-4464.25,0.00016438,2]
[335352319,1724154640327,-500.0,0.00016438,2]
[335352320,1724154640336,-761.98,0.00016438,2]
[335352321,1724154640345,-500.0,0.00016438,2]
[335352322,1724154640355,-500.0,0.00016438,2]
[335352323,1724154640365,-378.61689988,0.00016438,2]
[335352324,1724154640375,-500.0,0.00016438,2]
[335352325,1724154640385,-500.0,0.00016438,2]
[335352326,1724154640396,-632.12,0.00016438,2]
[335352327,1724154640407,-562.61799133,0.00016438,2]
[335352328,1724154640417,-485.0315893,0.00016438,2]
[335352329,1724154640428,-1001.52,0.00016438,2]
[335352330,1724154640438,-510.03959753,0.00016438,2]
[335352331,1724154640449,-501.32321532,0.00016438,2]
[335352332,1724154640461,-500.0,0.00016438,2]
[335352333,1724154640471,-500.0,0.00016438,2]
[335352334,1724154640482,-1401.16,0.00016438,2]
[335352335,1724154640492,-500.0,0.00016438,2]
[335352336,1724154640502,-500.0,0.00016438,2]
[335352337,1724154640511,-300.0,0.000167,6]
[335352338,1724154640522,-528.98791894,0.00016712,2]
[335352339,1724154640531,-500.0,0.00016712,2]
[335352340,1724154640543,-500.0,0.00016712,2]
[335352341,1724154640552,-500.0,0.00016712,2]
[335352342,1724154640561,-500.0,0.00016712,2]
[335352343,1724154640570,-500.0,0.00016712,2]
[335352344,1724154640580,-500.0,0.00016712,2]
[335352345,1724154640590,-500.0,0.00016712,2]
[335352346,1724154640601,-500.0,0.00016712,2]
[335352347,1724154640633,-500.0,0.00016712,2]
[335352348,1724154640643,-551.74152002,0.00016712,2]
[335352349,1724154640653,-500.0,0.00016712,2]
[335352350,1724154640663,-500.0,0.00016712,2]
[335352351,1724154640674,-500.0,0.00016712,2]
[335352352,1724154640685,-500.0,0.00016712,2]
[335352353,1724154640696,-633.09,0.00016712,2]
[335352354,1724154640706,-500.0,0.00016712,2]
[335352355,1724154640715,-591.55622483,0.00016712,2]
[335352356,1724154640726,-1510.61,0.00016712,2]
[335352357,1724154640735,-1765.31467839,0.00016712,2]
[335352358,1724154640745,-500.0,0.00016712,2]
[335352359,1724154640754,-420.44852246,0.00016712,2]
[335352360,1724154640764,-517.6837844,0.00016712,2]
[335352361,1724154640773,-500.0,0.00016712,2]
[335352362,1724154640783,-500.0,0.00016712,2]
[335352363,1724154640793,-653.02,0.00016712,2]
[335352364,1724154640802,-753.23,0.00016712,2]
[335352365,1724154640811,-749.92,0.00016712,2]
[335352366,1724154640823,-500.0,0.00016712,2]
[335352367,1724154640832,-890.93,0.00016712,2]
[335352368,1724154640842,-500.0,0.00016712,2]
[335352369,1724154640851,-1388.38,0.00016712,2]
[335352370,1724154640861,-500.0,0.00016712,2]
[335352371,1724154640871,-500.0,0.00016712,2]
[335352372,1724154640880,-500.0,0.00016712,2]
[335352373,1724154640890,-500.0,0.00016712,2]
[335352374,1724154640900,-500.0,0.00016712,2]
[335352375,1724154640910,-943.21,0.00016712,2]
[335352376,1724154640919,-520.05,0.00016712,2]
[335352377,1724154640929,-500.0,0.00016712,2]
[335352378,1724154640939,-500.0,0.00016712,2]
[335352379,1724154640948,-500.0,0.00016712,2]
[335352380,1724154640958,-500.0,0.00016712,2]
[335352381,1724154640967,-500.0,0.00016712,2]
[335352382,1724154640977,-500.0,0.00016712,2]
[335352383,1724154640987,-500.0,0.00016712,2]
[335352384,1724154640997,-500.0,0.00016712,2]
[335352385,1724154641006,-500.0,0.00016712,2]
[335352386,1724154641015,-500.0,0.00016712,2]
[335352387,1724154641026,-500.0,0.00016712,2]
[335352388,1724154641035,-2495.02,0.00016712,2]
[335352389,1724154641049,-571.66,0.00016712,2]
[335352390,1724154641058,-325.07954754,0.00016712,2]
[335352391,1724154641068,-500.0,0.00016712,2]
[335352392,1724154641078,-500.0,0.00016712,2]
[335352393,1724154641087,-500.0,0.00016712,2]
[335352394,1724154641097,-500.0,0.00016712,2]
[335352395,1724154641106,-4464.25,0.00016712,2]
[335352396,1724154641115,-500.0,0.00016712,2]
[335352397,1724154641127,-761.98,0.00016712,2]
[335352398,1724154641138,-500.0,0.00016712,2]
[335352399,1724154641148,-500.0,0.00016712,2]
[335352400,1724154641158,-544.89993281,0.00016712,2]
[335352401,1724154641167,-500.0,0.00016712,2]
[335352402,1724154641178,-632.12,0.00016712,2]
[335352403,1724154641187,-1001.52,0.00016712,2]
[335352404,1724154641198,-500.0,0.00016712,2]
[335352405,1724154641210,-500.0,0.00016712,2]
[335352406,1724154641219,-1401.16,0.00016712,2]
[335352407,1724154641228,-500.0,0.00016712,2]
[335352408,1724154641238,-500.0,0.00016712,2]
[335352409,1724154641247,-207.6,0.00016814,2]
[335352410,1724154641257,-155.0,0.00016814,2]
[335352411,1724154641266,-500.0,0.00016986,2]
[335352412,1724154641276,-500.0,0.00016986,2]
[335352413,1724154641285,-500.0,0.00016986,2]
[335352414,1724154641297,-390.43129201,0.00016986,2]
[335352415,1724154641306,-500.0,0.00016986,2]
[335352416,1724154641316,-500.0,0.00016986,2]
[335352417,1724154641325,-500.0,0.00016986,2]
[335352419,1724154641334,-500.0,0.00016986,2]
[335352420,1724154641344,-500.0,0.00016986,2]
[335352421,1724154641354,-500.0,0.00016986,2]
[335352422,1724154641363,-500.0,0.00016986,2]
[335352423,1724154641373,-500.0,0.00016986,2]
[335352424,1724154641383,-500.0,0.00016986,2]
[335352425,1724154641393,-633.09,0.00016986,2]
[335352426,1724154641402,-500.0,0.00016986,2]
[335352427,1724154641412,-1510.61,0.00016986,2]
[335352428,1724154641423,-500.0,0.00016986,2]
[335352429,1724154641432,-388.52637591,0.00016986,2]
[335352431,1724154641442,-500.0,0.00016986,2]
[335352433,1724154641453,-653.02,0.00016986,2]
[335352435,1724154641463,-753.23,0.00016986,2]
[335352437,1724154641475,-749.92,0.00016986,2]
[335352439,1724154641486,-500.0,0.00016986,2]
[335352441,1724154641496,-890.93,0.00016986,2]
[335352443,1724154641507,-500.0,0.00016986,2]
[335352445,1724154641519,-1388.38,0.00016986,2]
[335352447,1724154641529,-500.0,0.00016986,2]
[335352449,1724154641540,-500.0,0.00016986,2]
[335352452,1724154641551,-500.0,0.00016986,2]
[335352454,1724154641561,-500.0,0.00016986,2]
[335352456,1724154641570,-609.26081606,0.00016986,2]
[335352458,1724154641580,-943.21,0.00016986,2]
[335352460,1724154641590,-520.05,0.00016986,2]
[335352462,1724154641600,-500.0,0.00016986,2]
[335352464,1724154641610,-500.0,0.00016986,2]
[335352466,1724154641620,-500.0,0.00016986,2]
[335352468,1724154641630,-500.0,0.00016986,2]
[335352470,1724154641640,-500.0,0.00016986,2]
[335352472,1724154641650,-500.0,0.00016986,2]
[335352475,1724154641660,-500.0,0.00016986,2]
[335352478,1724154641670,-500.0,0.00016986,2]
[335352481,1724154641680,-500.0,0.00016986,2]
[335352484,1724154641690,-500.0,0.00016986,2]
[335352487,1724154641699,-500.0,0.00016986,2]
[335352490,1724154641710,-2495.02,0.00016986,2]
[335352493,1724154641722,-571.66,0.00016986,2]
[335352496,1724154641733,-500.0,0.00016986,2]
[335352498,1724154641743,-500.0,0.00016986,2]
[335352500,1724154641754,-500.0,0.00016986,2]
[335352502,1724154641763,-500.0,0.00016986,2]
[335352504,1724154641774,-4464.25,0.00016986,2]
[335352506,1724154641785,-500.0,0.00016986,2]
[335352508,1724154641797,-761.98,0.00016986,2]
[335352510,1724154641808,-500.0,0.00016986,2]
[335352512,1724154641819,-500.0,0.00016986,2]
[335352514,1724154641830,-555.11710822,0.00016986,2]
[335352517,1724154641841,-632.12,0.00016986,2]
[335352519,1724154641850,-1001.52,0.00016986,2]
[335352521,1724154641860,-500.0,0.00016986,2]
[335352523,1724154641871,-500.0,0.00016986,2]
[335352525,1724154641881,-1401.16,0.00016986,2]
[335352527,1724154641893,-500.0,0.00016986,2]
[335352529,1724154641903,-500.0,0.00016986,2]
[335352531,1724154641913,-200.0,0.00017174,2]
[335352533,1724154641923,-200.0,0.00017174,2]
[335352535,1724154641933,-207.6,0.0001719,2]
[335352537,1724154641943,-155.0,0.0001719,2]
[335352539,1724154641953,-283.11063343,0.0001726,2]
[335352555,1724154642100,-500.0,0.0001726,2]
[335352557,1724154642110,-500.0,0.0001726,2]
[335352559,1724154642120,-500.0,0.0001726,2]
[335352561,1724154642137,-500.0,0.0001726,2]
[335352563,1724154642147,-485.75164508,0.0001726,2]
[335352565,1724154642157,-500.0,0.0001726,2]
[335352568,1724154642167,-500.0,0.0001726,2]
[335352570,1724154642177,-500.0,0.0001726,2]
[335352572,1724154642186,-500.0,0.0001726,2]
[335352574,1724154642196,-500.0,0.0001726,2]
[335352576,1724154642207,-500.0,0.0001726,2]
[335352578,1724154642216,-633.09,0.0001726,2]
[335352580,1724154642226,-500.0,0.0001726,2]
[335352582,1724154642235,-1510.61,0.0001726,2]
[335352584,1724154642246,-500.0,0.0001726,2]
[335352586,1724154642256,-307.22257582,0.0001726,2]
[335352587,1724154642265,-653.02,0.0001726,2]
[335352588,1724154642274,-753.23,0.0001726,2]
[335352589,1724154642284,-749.92,0.0001726,2]
[335352590,1724154642296,-500.0,0.0001726,2]
[335352591,1724154642306,-890.93,0.0001726,2]
[335352592,1724154642317,-500.0,0.0001726,2]
[335352593,1724154642327,-1388.38,0.0001726,2]
[335352594,1724154642337,-500.0,0.0001726,2]
[335352595,1724154642346,-500.0,0.0001726,2]
[335352596,1724154642356,-500.0,0.0001726,2]
[335352597,1724154642365,-500.0,0.0001726,2]
[335352598,1724154642375,-943.21,0.0001726,2]
[335352599,1724154642386,-520.05,0.0001726,2]
[335352600,1724154642396,-500.0,0.0001726,2]
[335352601,1724154642406,-500.0,0.0001726,2]
[335352602,1724154642417,-500.0,0.0001726,2]
[335352603,1724154642427,-500.0,0.0001726,2]
[335352604,1724154642437,-500.0,0.0001726,2]
[335352605,1724154642446,-500.0,0.0001726,2]
[335352606,1724154642457,-500.0,0.0001726,2]
[335352607,1724154642467,-500.0,0.0001726,2]
[335352608,1724154642478,-500.0,0.0001726,2]
[335352609,1724154642487,-500.0,0.0001726,2]
[335352610,1724154642496,-500.0,0.0001726,2]
[335352611,1724154642506,-2495.02,0.0001726,2]
[335352612,1724154642515,-571.66,0.0001726,2]
[335352613,1724154642525,-500.0,0.0001726,2]
[335352614,1724154642534,-500.0,0.0001726,2]
[335352616,1724154642545,-500.0,0.0001726,2]
[335352617,1724154642555,-500.0,0.0001726,2]
[335352618,1724154642565,-4464.25,0.0001726,2]
[335352619,1724154642574,-500.0,0.0001726,2]
[335352620,1724154642584,-761.98,0.0001726,2]
[335352621,1724154642593,-500.0,0.0001726,2]
[335352622,1724154642603,-213.1,0.0001726,2]
[335352623,1724154642612,-632.12,0.0001726,2]
[335352624,1724154642621,-1001.52,0.0001726,2]
[335352625,1724154642631,-500.0,0.0001726,2]
[335352626,1724154642641,-500.0,0.0001726,2]
[335352627,1724154642650,-1401.16,0.0001726,2]
[335352628,1724154642660,-500.0,0.0001726,2]
[335352629,1724154642669,-336.04904781,0.0001726,2]
[335352630,1724154642679,-500.0,0.00017534,2]
[335352631,1724154642688,-500.0,0.00017534,2]
[335352632,1724154642698,-305.249749,0.00017534,2]
[335352634,1724154642707,-500.0,0.00017534,2]
[335352636,1724154642718,-500.0,0.00017534,2]
[335352639,1724154642728,-500.0,0.00017534,2]
[335352640,1724154642738,-500.0,0.00017534,2]
[335352641,1724154642749,-500.0,0.00017534,2]
[335352645,1724154642765,-500.0,0.00017534,2]
[335352648,1724154642782,-500.0,0.00017534,2]
[335352650,1724154642795,-633.09,0.00017534,2]
[335352652,1724154642805,-500.0,0.00017534,2]
[335352654,1724154642816,-1510.61,0.00017534,2]
[335352655,1724154642829,-500.0,0.00017534,2]
[335352656,1724154642841,-653.02,0.00017534,2]
[335352657,1724154642852,-753.23,0.00017534,2]
[335352659,1724154642862,-749.92,0.00017534,2]
[335352661,1724154642872,-500.0,0.00017534,2]
[335352663,1724154642882,-890.93,0.00017534,2]
[335352665,1724154642893,-500.0,0.00017534,2]
[335352667,1724154642903,-1388.38,0.00017534,2]
[335352669,1724154642913,-500.0,0.00017534,2]
[335352671,1724154642923,-500.0,0.00017534,2]
[335352673,1724154642932,-500.0,0.00017534,2]
[335352674,1724154642943,-202.5375394,0.00017534,2]
[335352675,1724154642952,-943.21,0.00017534,2]
[335352676,1724154642962,-520.05,0.00017534,2]
[335352677,1724154642972,-500.0,0.00017534,2]
[335352678,1724154642983,-500.0,0.00017534,2]
[335352679,1724154642995,-491.69557677,0.00017534,2]
[335352680,1724154643007,-500.0,0.00017534,2]
[335352681,1724154643018,-500.0,0.00017534,2]
[335352682,1724154643027,-500.0,0.00017534,2]
[335352683,1724154643037,-500.0,0.00017534,2]
[335352684,1724154643050,-500.0,0.00017534,2]
[335352685,1724154643061,-500.0,0.00017534,2]
[335352686,1724154643071,-500.0,0.00017534,2]
[335352687,1724154643080,-500.0,0.00017534,2]
[335352688,1724154643092,-2495.02,0.00017534,2]
[335352689,1724154643104,-571.66,0.00017534,2]
[335352690,1724154643115,-500.0,0.00017534,2]
[335352691,1724154643126,-182.10796421,0.00017534,2]
[335352692,1724154643139,-500.0,0.00017534,2]
[335352693,1724154643151,-500.0,0.00017534,2]
[335352694,1724154643163,-4464.25,0.00017534,2]
[335352695,1724154643175,-500.0,0.00017534,2]
[335352696,1724154643186,-761.98,0.00017534,2]
[335352697,1724154643199,-500.0,0.00017534,2]
[335352698,1724154643212,-632.12,0.00017534,2]
[335352699,1724154643222,-1001.52,0.00017534,2]
[335352700,1724154643232,-500.0,0.00017534,2]
[335352701,1724154643242,-500.0,0.00017534,2]
[335352702,1724154643252,-1401.16,0.00017534,2]
[335352703,1724154643262,-500.0,0.00017534,2]
[335352704,1724154643272,-207.6,0.00017566,2]
[335352705,1724154643282,-155.0,0.00017566,2]
[335352706,1724154643293,-377.0,0.000178,2]
[335352707,1724154643303,-1584.02368528,0.00017808,2]
[335352708,1724154643314,-500.0,0.00017808,2]
[335352709,1724154643323,-500.0,0.00017808,2]
[335352710,1724154643332,-500.0,0.00017808,2]
[335352711,1724154643342,-388.63576403,0.00017808,2]
[335352712,1724154643351,-500.0,0.00017808,2]
[335352713,1724154643361,-206.0847449,0.00017808,2]
[335352714,1724154643371,-500.0,0.00017808,2]
[335352715,1724154643381,-500.0,0.00017808,2]
[335352716,1724154643392,-500.0,0.00017808,2]
[335352717,1724154643402,-633.09,0.00017808,2]
[335352718,1724154643412,-287.49000296,0.00017808,2]
[335352719,1724154643422,-1510.61,0.00017808,2]
[335352720,1724154643433,-500.0,0.00017808,2]
[335352721,1724154643443,-653.02,0.00017808,2]
[335352723,1724154643453,-753.23,0.00017808,2]
[335352725,1724154643462,-749.92,0.00017808,2]
[335352727,1724154643473,-500.0,0.00017808,2]
[335352729,1724154643483,-890.93,0.00017808,2]
[335352730,1724154643492,-500.0,0.00017808,2]
[335352731,1724154643502,-1388.38,0.00017808,2]
[335352732,1724154643512,-500.0,0.00017808,2]
[335352733,1724154643521,-500.0,0.00017808,2]
[335352734,1724154643532,-500.0,0.00017808,2]
[335352735,1724154643543,-943.21,0.00017808,2]
[335352736,1724154643553,-520.05,0.00017808,2]
[335352737,1724154643563,-500.0,0.00017808,2]
[335352738,1724154643574,-500.0,0.00017808,2]
[335352739,1724154643585,-500.0,0.00017808,2]
[335352740,1724154643599,-500.0,0.00017808,2]
[335352741,1724154643609,-261.06229854,0.00017808,2]
[335352742,1724154643619,-500.0,0.00017808,2]
[335352743,1724154643630,-500.0,0.00017808,2]
[335352744,1724154643642,-500.0,0.00017808,2]
[335352745,1724154643653,-500.0,0.00017808,2]
[335352746,1724154643665,-500.0,0.00017808,2]
[335352747,1724154643676,-2495.02,0.00017808,2]
[335352748,1724154643688,-571.66,0.00017808,2]
[335352749,1724154643700,-500.0,0.00017808,2]
[335352750,1724154643712,-500.0,0.00017808,2]